[Event "Late-Titled-Tuesday-Blitz-February-06-2024"]
[Site "Chess.com"]
[Date "2024.02.06"]
[Round "8"]
[White "Rud_Makarian"]
[Black "GadimbayliA"]
[Result "1/2-1/2"]
[WhiteElo "3030"]
[BlackElo "2828"]
[TimeControl "180+1"]
[EndTime "15:30:23 PST"]
[Termination "Game drawn by repetition"]

1. d4 {[%clk 0:03:00.9]} 1... d5 {[%clk 0:03:00.2]} 2. c4 {[%clk 0:02:59.2]}
2... e5 {[%clk 0:02:59.6]} 3. dxe5 {[%clk 0:02:58.6]} 3... d4 {[%clk 0:03:00.5]}
4. Nf3 {[%clk 0:02:58.3]} 4... Nc6 {[%clk 0:03:01.2]} 5. g3 {[%clk 0:02:58.1]}
5... Nge7 {[%clk 0:03:01.2]} 6. Bg2 {[%clk 0:02:58.5]} 6... Ng6 {[%clk
0:03:01.8]} 7. O-O {[%clk 0:02:58]} 7... Ngxe5 {[%clk 0:03:02.3]} 8. Nbd2 {[%clk
0:02:58.4]} 8... Be7 {[%clk 0:03:02]} 9. a3 {[%clk 0:02:58.4]} 9... a5 {[%clk
0:02:59.2]} 10. b3 {[%clk 0:02:54.9]} 10... O-O {[%clk 0:02:58.9]} 11. Bb2
{[%clk 0:02:55.5]} 11... Nxf3+ {[%clk 0:02:52.6]} 12. Nxf3 {[%clk 0:02:55]}
12... Bf6 {[%clk 0:02:53]} 13. Qd2 {[%clk 0:02:54.8]} 13... Qd6 {[%clk
0:02:38.2]} 14. Rad1 {[%clk 0:02:44.7]} 14... Rd8 {[%clk 0:02:37.9]} 15. Qc1
{[%clk 0:02:35]} 15... Bg4 {[%clk 0:02:16]} 16. Rd2 {[%clk 0:02:32.9]} 16...
Bxf3 {[%clk 0:02:08.9]} 17. exf3 {[%clk 0:02:33.8]} 17... Rd7 {[%clk 0:01:59]}
18. f4 {[%clk 0:02:32.7]} 18... Rad8 {[%clk 0:01:59.1]} 19. Rfd1 {[%clk
0:02:32.4]} 19... Qc5 {[%clk 0:01:59.4]} 20. Rd3 {[%clk 0:02:21.4]} 20... g6
{[%clk 0:01:53.5]} 21. Qd2 {[%clk 0:02:20.3]} 21... Kg7 {[%clk 0:01:53]} 22. h4
{[%clk 0:02:20.8]} 22... h5 {[%clk 0:01:53.1]} 23. Bf3 {[%clk 0:02:14.9]} 23...
a4 {[%clk 0:01:41.2]} 24. b4 {[%clk 0:01:46.1]} 24... Qxc4 {[%clk 0:01:39.7]}
25. Rc1 {[%clk 0:01:46.8]} 25... Qa6 {[%clk 0:00:59.3]} 26. Bxc6 {[%clk
0:01:10]} 26... bxc6 {[%clk 0:01:00.2]} 27. Qd1 {[%clk 0:01:10.7]} 27... Rd5
{[%clk 0:00:54.6]} 28. Qc2 {[%clk 0:01:02.2]} 28... R8d6 {[%clk 0:00:31.4]} 29.
Kg2 {[%clk 0:00:59.2]} 29... Qb5 {[%clk 0:00:27.4]} 30. Qc4 {[%clk 0:00:59.6]}
30... Qb7 {[%clk 0:00:24.5]} 31. Kg1 {[%clk 0:00:41.2]} 31... Re6 {[%clk
0:00:24.8]} 32. Qc2 {[%clk 0:00:33.1]} 32... Qb8 {[%clk 0:00:20.1]} 33. Qxa4
{[%clk 0:00:23.2]} 33... Qe8 {[%clk 0:00:20.5]} 34. Qd1 {[%clk 0:00:18.1]} 34...
Re2 {[%clk 0:00:17.3]} 35. Ba1 {[%clk 0:00:15.4]} 35... Qe4 {[%clk 0:00:12.9]}
36. Kf1 {[%clk 0:00:12.3]} 36... Ra2 {[%clk 0:00:08.4]} 37. Kg1 {[%clk
0:00:08.8]} 37... Rd8 {[%clk 0:00:08.7]} 38. f3 {[%clk 0:00:06.5]} 38... Qe6
{[%clk 0:00:08.3]} 39. Rd2 {[%clk 0:00:05.7]} 39... Rxa3 {[%clk 0:00:08.8]} 40.
Kg2 {[%clk 0:00:05.6]} 40... d3 {[%clk 0:00:07.7]} 41. Bxf6+ {[%clk 0:00:05.4]}
41... Qxf6 {[%clk 0:00:08.6]} 42. Qf1 {[%clk 0:00:03.7]} 42... Rb3 {[%clk
0:00:07.2]} 43. Rcd1 {[%clk 0:00:03.7]} 43... Qc3 {[%clk 0:00:07.6]} 44. Kh3
{[%clk 0:00:02.9]} 44... Qxb4 {[%clk 0:00:05.2]} 45. Rxd3 {[%clk 0:00:02.5]}
45... Rdxd3 {[%clk 0:00:04.5]} 46. Rxd3 {[%clk 0:00:02.6]} 46... Rxd3 {[%clk
0:00:04.1]} 47. Qxd3 {[%clk 0:00:03.1]} 47... Qb5 {[%clk 0:00:04.7]} 48. Qd4+
{[%clk 0:00:02.8]} 48... Kg8 {[%clk 0:00:03.9]} 49. Qd8+ {[%clk 0:00:03.1]}
49... Kg7 {[%clk 0:00:04.4]} 50. Qxc7 {[%clk 0:00:03.5]} 50... Qd5 {[%clk
0:00:03.7]} 51. Kg2 {[%clk 0:00:02.1]} 51... c5 {[%clk 0:00:04.2]} 52. Kf2
{[%clk 0:00:02.4]} 52... Qd2+ {[%clk 0:00:04]} 53. Kf1 {[%clk 0:00:02.6]} 53...
Qd3+ {[%clk 0:00:04.2]} 54. Kf2 {[%clk 0:00:03.1]} 54... Qd4+ {[%clk 0:00:04.8]}
55. Ke2 {[%clk 0:00:03]} 55... Qc4+ {[%clk 0:00:04.2]} 56. Ke3 {[%clk
0:00:02.8]} 56... Qd4+ {[%clk 0:00:04.6]} 57. Ke2 {[%clk 0:00:03.5]} 57... Qc4+
{[%clk 0:00:04.5]} 58. Ke3 {[%clk 0:00:03.7]} 58... Qb3+ {[%clk 0:00:04.9]} 59.
Ke4 {[%clk 0:00:03.3]} 59... Qc2+ {[%clk 0:00:02.2]} 60. Ke3 {[%clk 0:00:03.1]}
60... Qc3+ {[%clk 0:00:02.5]} 61. Ke2 {[%clk 0:00:03.3]} 61... Qb2+ {[%clk
0:00:02.8]} 62. Ke3 {[%clk 0:00:03.5]} 62... Qd4+ {[%clk 0:00:03.4]} 63. Ke2
{[%clk 0:00:04]} 1/2-1/2

[Event "Late-Titled-Tuesday-Blitz-February-06-2024"]
[Site "Chess.com"]
[Date "2024.02.06"]
[Round "8"]
[White "GMG"]
[Black "mightysmasher"]
[Result "1-0"]
[WhiteElo "2685"]
[BlackElo "2554"]
[TimeControl "180+1"]
[EndTime "15:30:32 PST"]
[Termination "GMG won by checkmate"]

1. Nf3 {[%clk 0:02:58.2]} 1... d5 {[%clk 0:02:57.3]} 2. g3 {[%clk 0:02:58.3]}
2... Nf6 {[%clk 0:02:56.9]} 3. Bg2 {[%clk 0:02:58.5]} 3... e6 {[%clk 0:02:57.2]}
4. c4 {[%clk 0:02:57.6]} 4... Be7 {[%clk 0:02:57.3]} 5. d4 {[%clk 0:02:57.9]}
5... O-O {[%clk 0:02:57.6]} 6. O-O {[%clk 0:02:58.5]} 6... b6 {[%clk 0:02:58.1]}
7. cxd5 {[%clk 0:02:57.4]} 7... exd5 {[%clk 0:02:58]} 8. Nc3 {[%clk 0:02:55.5]}
8... Bb7 {[%clk 0:02:58.3]} 9. Ne5 {[%clk 0:02:54.1]} 9... Nbd7 {[%clk
0:02:56.5]} 10. Qa4 {[%clk 0:02:53.8]} 10... Nxe5 {[%clk 0:02:31.9]} 11. dxe5
{[%clk 0:02:54.7]} 11... Nd7 {[%clk 0:02:31.7]} 12. Nxd5 {[%clk 0:02:50.4]}
12... Nc5 {[%clk 0:02:29.6]} 13. Qc4 {[%clk 0:02:46.5]} 13... c6 {[%clk
0:02:23.7]} 14. Nxe7+ {[%clk 0:02:33.4]} 14... Qxe7 {[%clk 0:02:22.5]} 15. f4
{[%clk 0:02:31.4]} 15... Rac8 {[%clk 0:02:14.9]} 16. Be3 {[%clk 0:02:30.8]}
16... Nd7 {[%clk 0:02:04.6]} 17. Rad1 {[%clk 0:02:25.9]} 17... Rfd8 {[%clk
0:01:57.6]} 18. Bh3 {[%clk 0:02:21.1]} 18... c5 {[%clk 0:01:56.7]} 19. Rd2
{[%clk 0:01:52.3]} 19... Rb8 {[%clk 0:01:33.1]} 20. Qa4 {[%clk 0:01:43.3]} 20...
Nf8 {[%clk 0:01:24.5]} 21. Rxd8 {[%clk 0:01:40.2]} 21... Qxd8 {[%clk 0:01:08.6]}
22. Rd1 {[%clk 0:01:39.9]} 22... Qc7 {[%clk 0:01:05]} 23. Rd6 {[%clk 0:01:38.9]}
23... Ba8 {[%clk 0:00:54.2]} 24. Qa6 {[%clk 0:01:20.9]} 24... h6 {[%clk
0:00:37.6]} 25. Bg2 {[%clk 0:01:12.8]} 25... Bxg2 {[%clk 0:00:35.4]} 26. Kxg2
{[%clk 0:01:13.7]} 26... Ne6 {[%clk 0:00:35.7]} 27. f5 {[%clk 0:01:08.2]} 27...
Nf8 {[%clk 0:00:35.1]} 28. Qd3 {[%clk 0:01:06.6]} 28... Re8 {[%clk 0:00:33.7]}
29. Qd5 {[%clk 0:01:03.7]} 29... Qe7 {[%clk 0:00:32]} 30. Bf4 {[%clk 0:01:03.6]}
30... Kh8 {[%clk 0:00:26.9]} 31. g4 {[%clk 0:01:01]} 31... Qh4 {[%clk
0:00:25.1]} 32. h3 {[%clk 0:00:54.2]} 32... Kg8 {[%clk 0:00:21.2]} 33. Bg3
{[%clk 0:00:45.9]} 33... Qg5 {[%clk 0:00:20.8]} 34. Qd2 {[%clk 0:00:45.8]} 34...
Qe7 {[%clk 0:00:19.9]} 35. a4 {[%clk 0:00:39.5]} 35... Qb7+ {[%clk 0:00:19.4]}
36. Kh2 {[%clk 0:00:34.6]} 36... Qe4 {[%clk 0:00:17.8]} 37. b3 {[%clk
0:00:32.9]} 37... h5 {[%clk 0:00:15.3]} 38. Qd3 {[%clk 0:00:31.6]} 38... Qxd3
{[%clk 0:00:11.5]} 39. exd3 {[%clk 0:00:28.5]} 39... hxg4 {[%clk 0:00:12.4]} 40.
hxg4 {[%clk 0:00:29.1]} 40... Nh7 {[%clk 0:00:13]} 41. Bf4 {[%clk 0:00:28]}
41... Nf8 {[%clk 0:00:10.7]} 42. Kg3 {[%clk 0:00:28.1]} 42... Rc8 {[%clk
0:00:10.7]} 43. Kf3 {[%clk 0:00:27.6]} 43... Re8 {[%clk 0:00:10.6]} 44. Ke4
{[%clk 0:00:27.6]} 44... Rc8 {[%clk 0:00:09.4]} 45. Kd5 {[%clk 0:00:27.8]} 45...
g6 {[%clk 0:00:09.5]} 46. Bg5 {[%clk 0:00:19.7]} 46... gxf5 {[%clk 0:00:06.2]}
47. gxf5 {[%clk 0:00:19.9]} 47... Nh7 {[%clk 0:00:06.5]} 48. Rd8+ {[%clk
0:00:18.3]} 48... Rxd8+ {[%clk 0:00:06.9]} 49. Bxd8 {[%clk 0:00:19.2]} 49... Kf8
{[%clk 0:00:07.6]} 50. Bc7 {[%clk 0:00:18.9]} 50... Ke8 {[%clk 0:00:08.2]} 51.
Bb8 {[%clk 0:00:19.4]} 51... Kd7 {[%clk 0:00:08.4]} 52. Bxa7 {[%clk 0:00:18.1]}
52... Kc7 {[%clk 0:00:08.9]} 53. e6 {[%clk 0:00:17]} 53... fxe6+ {[%clk
0:00:08.8]} 54. Kxe6 {[%clk 0:00:16.4]} 54... Kb7 {[%clk 0:00:06.7]} 55. Bxb6
{[%clk 0:00:16.4]} 55... Kxb6 {[%clk 0:00:06.9]} 56. f6 {[%clk 0:00:16.9]} 56...
Ka5 {[%clk 0:00:06.2]} 57. f7 {[%clk 0:00:12.4]} 57... Nf8+ {[%clk 0:00:04.5]}
58. Kd5 {[%clk 0:00:09.3]} 58... Kb4 {[%clk 0:00:03.9]} 59. d4 {[%clk
0:00:09.7]} 59... cxd4 {[%clk 0:00:02.7]} 60. Kxd4 {[%clk 0:00:10.6]} 60... Ne6+
{[%clk 0:00:02.4]} 61. Ke5 {[%clk 0:00:10.7]} 61... Nf8 {[%clk 0:00:02.3]} 62.
Kd6 {[%clk 0:00:11.3]} 62... Ng6 {[%clk 0:00:01.3]} 63. Kc7 {[%clk 0:00:10.5]}
63... Nf8 {[%clk 0:00:02.2]} 64. Kb6 {[%clk 0:00:10.9]} 64... Kxb3 {[%clk
0:00:02.9]} 65. a5 {[%clk 0:00:11.1]} 65... Kb4 {[%clk 0:00:03.8]} 66. a6 {[%clk
0:00:11.5]} 66... Nd7+ {[%clk 0:00:04.7]} 67. Kc7 {[%clk 0:00:11.1]} 67... Nc5
{[%clk 0:00:05]} 68. a7 {[%clk 0:00:11.4]} 68... Ne6+ {[%clk 0:00:05.4]} 69. Kd6
{[%clk 0:00:11.6]} 69... Nf8 {[%clk 0:00:06.3]} 70. a8=Q {[%clk 0:00:11.5]}
70... Ng6 {[%clk 0:00:07.2]} 71. Qb8+ {[%clk 0:00:11.7]} 71... Kc4 {[%clk
0:00:07.3]} 72. Ke6 {[%clk 0:00:12.6]} 72... Kd4 {[%clk 0:00:07.6]} 73. Kf6
{[%clk 0:00:12.7]} 73... Ke3 {[%clk 0:00:07.6]} 74. Kxg6 {[%clk 0:00:12.7]}
74... Ke4 {[%clk 0:00:08.5]} 75. f8=Q {[%clk 0:00:12.7]} 75... Kd3 {[%clk
0:00:09.4]} 76. Qbe8 {[%clk 0:00:13.1]} 76... Kd2 {[%clk 0:00:10.3]} 77. Qfe7
{[%clk 0:00:13.7]} 77... Kd3 {[%clk 0:00:10.5]} 78. Q7d7+ {[%clk 0:00:14.6]}
78... Kc4 {[%clk 0:00:11.3]} 79. Qec8+ {[%clk 0:00:15.2]} 79... Kb4 {[%clk
0:00:12.2]} 80. Qdb7+ {[%clk 0:00:15.5]} 80... Ka5 {[%clk 0:00:13.1]} 81. Qca8#
{[%clk 0:00:16.2]} 1-0

[Event "Late-Titled-Tuesday-Blitz-February-06-2024"]
[Site "Chess.com"]
[Date "2024.02.06"]
[Round "8"]
[White "grzechu96"]
[Black "Genghis_K"]
[Result "1/2-1/2"]
[WhiteElo "2750"]
[BlackElo "2905"]
[TimeControl "180+1"]
[EndTime "15:30:35 PST"]
[Termination "Game drawn - insufficient material"]

1. e4 {[%clk 0:03:00.9]} 1... c5 {[%clk 0:02:46]} 2. Nf3 {[%clk 0:03:00.5]} 2...
d6 {[%clk 0:02:46.1]} 3. d4 {[%clk 0:03:01]} 3... cxd4 {[%clk 0:02:47]} 4. Qxd4
{[%clk 0:03:01.3]} 4... Nc6 {[%clk 0:02:46.3]} 5. Bb5 {[%clk 0:03:01.3]} 5... a6
{[%clk 0:02:46.9]} 6. Bxc6+ {[%clk 0:03:00.4]} 6... bxc6 {[%clk 0:02:47.8]} 7.
Qa4 {[%clk 0:03:00.6]} 7... Bd7 {[%clk 0:02:43.3]} 8. c4 {[%clk 0:02:58.4]} 8...
e5 {[%clk 0:02:25.4]} 9. O-O {[%clk 0:02:56.1]} 9... Ne7 {[%clk 0:02:23.8]} 10.
c5 {[%clk 0:02:54.8]} 10... Ng6 {[%clk 0:02:19.2]} 11. cxd6 {[%clk 0:02:54.6]}
11... Bxd6 {[%clk 0:02:19.9]} 12. Rd1 {[%clk 0:02:55]} 12... Qe7 {[%clk
0:02:15.6]} 13. Nbd2 {[%clk 0:02:52.8]} 13... O-O {[%clk 0:02:11.7]} 14. Nc4
{[%clk 0:02:53.2]} 14... Bc7 {[%clk 0:01:53.9]} 15. h3 {[%clk 0:02:47.4]} 15...
Rfd8 {[%clk 0:01:22.8]} 16. Qc2 {[%clk 0:02:46.2]} 16... Be6 {[%clk 0:01:15.4]}
17. Be3 {[%clk 0:02:43.8]} 17... Rxd1+ {[%clk 0:01:12.2]} 18. Rxd1 {[%clk
0:02:43.4]} 18... Rd8 {[%clk 0:01:12.9]} 19. Rxd8+ {[%clk 0:02:31.1]} 19... Qxd8
{[%clk 0:01:13.8]} 20. Ne1 {[%clk 0:02:29.6]} 20... Nf4 {[%clk 0:01:11.7]} 21.
b3 {[%clk 0:02:13.2]} 21... h6 {[%clk 0:00:53.6]} 22. Nb2 {[%clk 0:01:54.6]}
22... Bb6 {[%clk 0:00:39.7]} 23. Bxb6 {[%clk 0:01:48.3]} 23... Qxb6 {[%clk
0:00:39.7]} 24. Ned3 {[%clk 0:01:48.8]} 24... Qd4 {[%clk 0:00:34.2]} 25. Nc5
{[%clk 0:01:16.6]} 25... Bc8 {[%clk 0:00:27.9]} 26. Kh2 {[%clk 0:00:43.4]} 26...
Qd6 {[%clk 0:00:25.8]} 27. Nbd3 {[%clk 0:00:42]} 27... Qg6 {[%clk 0:00:18.1]}
28. Nxf4 {[%clk 0:00:40.8]} 28... exf4 {[%clk 0:00:19]} 29. Qd3 {[%clk
0:00:40.8]} 29... Kh7 {[%clk 0:00:18]} 30. e5 {[%clk 0:00:09]} 30... Bf5 {[%clk
0:00:10.4]} 31. Qd6 {[%clk 0:00:09.1]} 31... Bb1 {[%clk 0:00:09.8]} 32. a3
{[%clk 0:00:06.5]} 32... f3 {[%clk 0:00:09]} 33. Qxg6+ {[%clk 0:00:06.3]} 33...
Kxg6 {[%clk 0:00:09.9]} 34. Nxa6 {[%clk 0:00:06.2]} 34... Kf5 {[%clk 0:00:08.2]}
35. Nc5 {[%clk 0:00:03.5]} 35... Kxe5 {[%clk 0:00:08.3]} 36. a4 {[%clk 0:00:04]}
36... Kd5 {[%clk 0:00:03.8]} 37. b4 {[%clk 0:00:04.5]} 37... Ba2 {[%clk
0:00:02.4]} 38. a5 {[%clk 0:00:04.5]} 38... Bc4 {[%clk 0:00:02.1]} 39. a6 {[%clk
0:00:04.3]} 39... Bxa6 {[%clk 0:00:01.4]} 40. Nxa6 {[%clk 0:00:05.2]} 40... fxg2
{[%clk 0:00:02.2]} 41. Kxg2 {[%clk 0:00:05.5]} 41... g5 {[%clk 0:00:03.1]} 42.
Kf3 {[%clk 0:00:05.8]} 42... f5 {[%clk 0:00:03.9]} 43. Ke3 {[%clk 0:00:05.6]}
43... Kc4 {[%clk 0:00:03.5]} 44. Nb8 {[%clk 0:00:04.3]} 44... c5 {[%clk
0:00:02.2]} 45. bxc5 {[%clk 0:00:04.2]} 45... Kxc5 {[%clk 0:00:03.1]} 46. Nd7+
{[%clk 0:00:04.3]} 46... Kd5 {[%clk 0:00:03.8]} 47. Nb6+ {[%clk 0:00:03.9]}
47... Ke5 {[%clk 0:00:03.7]} 48. Nc4+ {[%clk 0:00:04.4]} 48... Kd5 {[%clk
0:00:04.4]} 49. Kd3 {[%clk 0:00:03.8]} 49... h5 {[%clk 0:00:03.5]} 50. Nd2
{[%clk 0:00:02.7]} 50... Ke5 {[%clk 0:00:03.8]} 51. Ke3 {[%clk 0:00:02.8]} 51...
f4+ {[%clk 0:00:03.8]} 52. Kf3 {[%clk 0:00:02.2]} 52... Kf5 {[%clk 0:00:04.5]}
53. Nc4 {[%clk 0:00:02.1]} 53... g4+ {[%clk 0:00:05]} 54. hxg4+ {[%clk
0:00:01.9]} 54... hxg4+ {[%clk 0:00:05.9]} 55. Kg2 {[%clk 0:00:01.8]} 55... Ke4
{[%clk 0:00:05.9]} 56. Nd6+ {[%clk 0:00:01.2]} 56... Ke5 {[%clk 0:00:06.6]} 57.
Nf7+ {[%clk 0:00:01.7]} 57... Kf5 {[%clk 0:00:06.8]} 58. Nd8 {[%clk 0:00:02.6]}
58... Ke5 {[%clk 0:00:07.1]} 59. Nc6+ {[%clk 0:00:02.9]} 59... Ke4 {[%clk
0:00:07.8]} 60. Nb4 {[%clk 0:00:03.2]} 60... Kd4 {[%clk 0:00:08]} 61. Nc2+
{[%clk 0:00:03.2]} 61... Ke4 {[%clk 0:00:08.6]} 62. Na3 {[%clk 0:00:03.8]} 62...
Kd4 {[%clk 0:00:08.8]} 63. Nb5+ {[%clk 0:00:04.3]} 63... Ke4 {[%clk 0:00:09.3]}
64. Nc7 {[%clk 0:00:04.6]} 64... Ke5 {[%clk 0:00:09.4]} 65. Ne8 {[%clk
0:00:04.7]} 65... Kf5 {[%clk 0:00:09.6]} 66. Nd6+ {[%clk 0:00:04.8]} 66... Ke5
{[%clk 0:00:10]} 67. Nf7+ {[%clk 0:00:05.1]} 67... Kf5 {[%clk 0:00:08.9]} 68.
Kf1 {[%clk 0:00:04.7]} 68... Kf6 {[%clk 0:00:08.4]} 69. Nd8 {[%clk 0:00:04.5]}
69... Ke5 {[%clk 0:00:08.1]} 70. Ke2 {[%clk 0:00:04.2]} 70... Ke4 {[%clk
0:00:07.9]} 71. Nc6 {[%clk 0:00:03.1]} 71... f3+ {[%clk 0:00:06.8]} 72. Kf1
{[%clk 0:00:03.2]} 72... Kf4 {[%clk 0:00:07.5]} 73. Nb4 {[%clk 0:00:02.2]} 73...
g3 {[%clk 0:00:06.6]} 74. Nd3+ {[%clk 0:00:01.7]} 74... Ke4 {[%clk 0:00:05.8]}
75. fxg3 {[%clk 0:00:01.6]} 75... Kxd3 {[%clk 0:00:06.3]} 76. Kf2 {[%clk
0:00:01.7]} 76... Ke4 {[%clk 0:00:07]} 77. g4 {[%clk 0:00:02.3]} 77... Kf4
{[%clk 0:00:07.7]} 78. g5 {[%clk 0:00:03.2]} 78... Kxg5 {[%clk 0:00:08.4]} 79.
Kxf3 {[%clk 0:00:03.9]} 1/2-1/2

[Event "Late-Titled-Tuesday-Blitz-February-06-2024"]
[Site "Chess.com"]
[Date "2024.02.06"]
[Round "8"]
[White "semchik73"]
[Black "HajiyevKanan"]
[Result "1-0"]
[WhiteElo "2439"]
[BlackElo "2593"]
[TimeControl "180+1"]
[EndTime "15:30:37 PST"]
[Termination "semchik73 won on time"]

1. Nf3 {[%clk 0:03:00.3]} 1... c6 {[%clk 0:03:00.9]} 2. c4 {[%clk 0:03:00.1]}
2... d5 {[%clk 0:03:01.8]} 3. e3 {[%clk 0:03:00.5]} 3... Nf6 {[%clk 0:03:01.4]}
4. Nc3 {[%clk 0:03:00.8]} 4... g6 {[%clk 0:03:01.3]} 5. d4 {[%clk 0:03:00.5]}
5... Bg7 {[%clk 0:03:01.9]} 6. Be2 {[%clk 0:03:00.9]} 6... O-O {[%clk
0:03:02.3]} 7. O-O {[%clk 0:03:01.2]} 7... Ne4 {[%clk 0:03:03]} 8. cxd5 {[%clk
0:02:55.4]} 8... Nxc3 {[%clk 0:03:02.8]} 9. bxc3 {[%clk 0:02:54.8]} 9... cxd5
{[%clk 0:03:03.7]} 10. Qb3 {[%clk 0:02:51.2]} 10... Nc6 {[%clk 0:03:03.9]} 11.
Ba3 {[%clk 0:02:46.9]} 11... b6 {[%clk 0:03:03.9]} 12. Rac1 {[%clk 0:02:41]}
12... Na5 {[%clk 0:03:04.1]} 13. Qb4 {[%clk 0:02:35]} 13... Re8 {[%clk
0:03:04.3]} 14. Rfd1 {[%clk 0:02:21.2]} 14... Bg4 {[%clk 0:02:59.5]} 15. Bb5
{[%clk 0:02:08.5]} 15... Bd7 {[%clk 0:02:52.3]} 16. Ne5 {[%clk 0:02:05.1]} 16...
Bxb5 {[%clk 0:02:49.9]} 17. Qxb5 {[%clk 0:02:04.8]} 17... Bxe5 {[%clk
0:02:50.6]} 18. dxe5 {[%clk 0:02:04.8]} 18... Nc4 {[%clk 0:02:46.9]} 19. Rxd5
{[%clk 0:01:08.4]} 19... Nxa3 {[%clk 0:02:46.6]} 20. Qb3 {[%clk 0:01:01.1]}
20... Qc7 {[%clk 0:02:25.4]} 21. Qxa3 {[%clk 0:01:01.1]} 21... Rac8 {[%clk
0:02:25.9]} 22. c4 {[%clk 0:00:55.3]} 22... e6 {[%clk 0:02:19.3]} 23. Rd6 {[%clk
0:00:53]} 23... Qc5 {[%clk 0:02:16.2]} 24. Qxa7 {[%clk 0:00:40.7]} 24... Qxe5
{[%clk 0:02:07.5]} 25. Rxb6 {[%clk 0:00:39.5]} 25... Ra8 {[%clk 0:02:06.3]} 26.
Qd7 {[%clk 0:00:37.6]} 26... Red8 {[%clk 0:02:03.9]} 27. Qe7 {[%clk 0:00:35.8]}
27... Re8 {[%clk 0:01:59.2]} 28. Qd6 {[%clk 0:00:32.1]} 28... Qxd6 {[%clk
0:01:59.2]} 29. Rxd6 {[%clk 0:00:31.8]} 29... Rxa2 {[%clk 0:02:00.1]} 30. c5
{[%clk 0:00:31.4]} 30... Rc8 {[%clk 0:01:56.2]} 31. c6 {[%clk 0:00:31.2]} 31...
Kf8 {[%clk 0:01:56.4]} 32. Rd7 {[%clk 0:00:22.4]} 32... Rxc6 {[%clk 0:01:53.4]}
33. Rdd1 {[%clk 0:00:20.4]} 33... Rxc1 {[%clk 0:01:50.2]} 34. Rxc1 {[%clk
0:00:20.7]} 34... h5 {[%clk 0:01:50.6]} 35. h3 {[%clk 0:00:21]} 35... h4 {[%clk
0:01:51]} 36. Rc4 {[%clk 0:00:19.2]} 36... g5 {[%clk 0:01:51.3]} 37. f4 {[%clk
0:00:18.2]} 37... f6 {[%clk 0:01:36.8]} 38. fxg5 {[%clk 0:00:18.3]} 38... fxg5
{[%clk 0:01:37.7]} 39. Rc5 {[%clk 0:00:16.6]} 39... g4 {[%clk 0:01:32.9]} 40.
hxg4 {[%clk 0:00:16.8]} 40... Re2 {[%clk 0:01:32.4]} 41. Re5 {[%clk 0:00:15.8]}
41... Kf7 {[%clk 0:01:33.1]} 42. g5 {[%clk 0:00:14.9]} 42... Ra2 {[%clk
0:01:28.4]} 43. Re4 {[%clk 0:00:13.1]} 43... Ra5 {[%clk 0:01:11.2]} 44. Rxh4
{[%clk 0:00:12]} 44... Rxg5 {[%clk 0:01:11.3]} 45. Kf2 {[%clk 0:00:12.6]} 45...
Kf6 {[%clk 0:01:10.7]} 46. Rf4+ {[%clk 0:00:12]} 46... Ke5 {[%clk 0:01:10.1]}
47. Kf3 {[%clk 0:00:12.6]} 47... Rg8 {[%clk 0:01:10.2]} 48. g4 {[%clk
0:00:12.4]} 48... Rg7 {[%clk 0:01:06.6]} 49. Re4+ {[%clk 0:00:12.6]} 49... Kf6
{[%clk 0:01:06.3]} 50. Kf4 {[%clk 0:00:11]} 50... e5+ {[%clk 0:01:03.5]} 51. Kg3
{[%clk 0:00:10.7]} 51... Ra7 {[%clk 0:00:57.6]} 52. Rb4 {[%clk 0:00:10.9]} 52...
Ra3 {[%clk 0:00:55.2]} 53. Kf3 {[%clk 0:00:08]} 53... Ra6 {[%clk 0:00:53.3]} 54.
Rb8 {[%clk 0:00:06.9]} 54... Rc6 {[%clk 0:00:50.7]} 55. Rf8+ {[%clk 0:00:07]}
55... Kg7 {[%clk 0:00:49.3]} 56. Rf5 {[%clk 0:00:06.8]} 56... Rc5 {[%clk
0:00:40.7]} 57. Ke4 {[%clk 0:00:07.2]} 57... Rc4+ {[%clk 0:00:41.2]} 58. Kxe5
{[%clk 0:00:06.8]} 58... Rxg4 {[%clk 0:00:41.3]} 59. e4 {[%clk 0:00:07.4]} 59...
Rg1 {[%clk 0:00:40.8]} 60. Ke6 {[%clk 0:00:07.4]} 60... Ra1 {[%clk 0:00:41]} 61.
Rd5 {[%clk 0:00:07.5]} 61... Ra6+ {[%clk 0:00:19.3]} 62. Rd6 {[%clk 0:00:07.8]}
62... Ra8 {[%clk 0:00:16.7]} 63. Rd7+ {[%clk 0:00:06]} 63... Kf8 {[%clk
0:00:15.2]} 64. e5 {[%clk 0:00:05.5]} 64... Ra6+ {[%clk 0:00:13.7]} 65. Rd6
{[%clk 0:00:05.7]} 65... Ra7 {[%clk 0:00:11]} 66. Rb6 {[%clk 0:00:05.6]} 66...
Ra8 {[%clk 0:00:10.4]} 67. Kf6 {[%clk 0:00:05.4]} 67... Kg8 {[%clk 0:00:05.5]}
68. e6 {[%clk 0:00:05.6]} 68... Rf8+ {[%clk 0:00:01.8]} 69. Ke7 {[%clk
0:00:05.9]} 69... Rf1 {[%clk 0:00:02.1]} 70. Ke8 {[%clk 0:00:05.5]} 70... Kg7
{[%clk 0:00:02.4]} 71. e7 {[%clk 0:00:05.5]} 71... Rd1 {[%clk 0:00:02.9]} 72.
Rb7 {[%clk 0:00:03.2]} 72... Rd2 {[%clk 0:00:03.2]} 73. Rd7 {[%clk 0:00:03.1]}
73... Kf6 {[%clk 0:00:04.1]} 74. Rxd2 {[%clk 0:00:02.8]} 74... Ke6 {[%clk
0:00:04.8]} 75. Re2+ {[%clk 0:00:03.3]} 1-0